[Event "1st Rio Chess Open 2022"]
[Site "Rio de Janeiro"]
[Date "2022.04.23"]
[Round "4.1"]
[White "Librelato, Kathie Goulart"]
[Black "Mekhitarian, Krikor Sevag"]
[Result "1-0"]
[ECO "B52"]
[WhiteElo "2156"]
[BlackElo "2569"]
[Annotator "TA"]
[PlyCount "109"]
[EventDate "2022.04.18"]
[EventType "swiss"]
[EventCountry "BRA"]
[SourceTitle "playchess.com"]
[Source "ChessBase"]
[SourceQuality "1"]
[TimeControl "5400+30"]

{[%evp 9,109,8,6,14,12,12,14,11,21,0,16,15,29,7,7,0,10,4,14,0,0,0,0,-1,12,16,29,0,0,0,0,0,0,0,0,0,0,-43,-43,-37,-28,-50,-26,-40,-35,-28,0,0,0,-70,-39,-104,-30,-100,-22,-126,-54,-59,-31,-11,0,0,0,0,14,1,8,12,19,0,0,0,0,0,71,71,75,75,79,90,97,79,87,67,239,238,520,522,526,527,555,-1488,473,468,2438,662,769,652,624,604,771,714]} 1. e4 {[%emt 0:00:02]} c5 {[%emt 0:11:49]} 2. Nf3 {[%emt 0:00:09]} d6 {[%emt 0:00:06]} 3. Bb5+ {[%emt 0:00:04]} Bd7 {[%emt 0:11:08]} 4. Bxd7+ {[%emt 0:00:10]} Qxd7 {[%emt 0:01:28]} 5. d4 {[%emt 0:00:14]} cxd4 {[%emt 0:00:42]} 6. Qxd4 {[%emt 0:00:09] B52: Sicilian: Moscow Variation with 3...Bd7.} Nc6 {[%emt 0:00:56]} 7. Qd3 {[%emt 0:00:07]} g6 {[%emt 0:03:30]} 8. O-O {[%emt 0:00:34] The position is equal.} Bg7 {[%emt 0:00:09]} 9. c4 {[%emt 0:00:52]} Nf6 {[%emt 0:01:28]} 10. Nc3 {[%emt 0:00:09]} O-O {[%emt 0:01:35]} 11. h3 {[%emt 0:01:50]} Rfc8 {[%emt 0:10:07]} 12. Be3 {[%emt 0:13:32]} Nb4 {[%emt 0:09:42]} 13. Qe2 {[%emt 0:00:15]} Qe6 {[%emt 0:01:14][%csl LRc4,LRe4] [#]} 14. Nd2 $146 {[%emt 0:22:08]} ({Predecessor:} 14. a3 Na6 15. Nd2 Nc5 16. Bd4 Bh6 17. f4 Nh5 18. f5 Qd7 19. Nd5 e6 20. Qxh5 gxh5 {1-0 (43) Storme,I (2153)-Thornert,H (2242) Sweden 2016}) 14... Nc2 {[%emt 0:12:13]} 15. Rac1 {[%emt 0:00:07]} Nxe3 {[%emt 0:00:07]} 16. Qxe3 {[%emt 0:00:07]} Nd7 {[%emt 0:01:16]} 17. b3 {[%emt 0:05:43]} Nc5 {[%emt 0:05:26]} 18. Nd5 {[%emt 0:07:58]} Qd7 {[%emt 0:00:58]} 19. Rfd1 {[%emt 0:01:10][%cal Oe4e5]} e6 {[%emt 0:02:05]} 20. Nc3 {[%emt 0:00:54]} a6 {[%emt 0:03:02]} 21. Nf3 {[%emt 0:03:56]} Qc7 {[%emt 0:01:17]} 22. Nd4 {[%emt 0:07:22]} Rd8 {[%emt 0:00:49]} 23. b4 {[%emt 0:00:41]} Nd7 {[%emt 0:00:14]} 24. Na4 {[%emt 0:00:23]} Rac8 {[%emt 0:03:46]} 25. Nb3 {[%emt 0:03:38]} Qc6 {[%emt 0:02:05]} 26. Nc3 {[%emt 0:00:43]} Ne5 {[%emt 0:07:03]} 27. Na5 {[%emt 0:02:23]} Qc7 {[%emt 0:00:38]} (27... Nxc4 $2 28. Nxc6 Nxe3 29. Ne7+ Kf8 30. Nxc8 Rxc8 31. Nb5 $1 $18 {[%mdl 512]} (31. fxe3 Rxc3 32. Rxc3 Bxc3 $16) (31. Rxd6 Bh6 $11)) (27... Qe8 $5 {[%cal Re5c4]} 28. Ne2 b5 $11) 28. Na4 {[%emt 0:00:14] Prevents b6.} Nd7 {[%emt 0:02:12]} 29. Qa7 {[%emt 0:15:35]} (29. Nb3 $11) 29... Rb8 {[%emt 0:03:32]} 30. Rc2 {[%emt 0:04:48] [#]} (30. g3 $15) 30... Bf8 {[%emt 0:02:25]} (30... Nc5 $1 $17 {[%mdl 512]} 31. Qb6 (31. Nxc5 $2 dxc5 32. Rcd2 cxb4 $17) 31... Qxb6 32. Nxb6 Nxe4) 31. a3 {[%emt 0:00:37] [#]} (31. Qe3 $11) 31... Rdc8 {[%emt 0:00:14]} (31... Nc5 $1 $17 {[%cal Rc5a4]} 32. Qb6 Qxb6 33. Nxb6 Nxe4) 32. Qd4 {[%emt 0:02:40] [#]} (32. Qe3 $1 $11) 32... b6 {[%emt 0:00:35]} ({Black should try} 32... Nc5 $1 $17 {[%cal Rc5a4][%mdl 512]} 33. Nb2 (33. bxc5 Qxa5) 33... b6 $1 34. bxc5 dxc5) 33. Nb3 $15 {[%emt 0:00:11]} b5 {[%emt 0:01:19]} 34. Nb2 {[%emt 0:00:22]} Nb6 {[%emt 0:00:50] aiming for ...Bg7.} 35. Na5 {[%emt 0:02:02]} ({Of course not} 35. c5 Rd8 36. Qc3 dxc5 37. Rxd8 Rxd8 38. Nxc5 Nc4 $15) 35... d5 {[%emt 0:00:49][%cal Rd5c4]} 36. c5 {[%emt 0:00:50]} Bg7 {[%emt 0:00:33]} 37. Qd3 {[%emt 0:00:25]} dxe4 {[%emt 0:00:55]} 38. Qxe4 {[%emt 0:00:07][%cal Oc5b6]} Nd5 {[%emt 0:00:02] ...Bxb2 is the strong threat.} 39. Re1 {[%emt 0:02:35]} Re8 {[%emt 0:00:38]} 40. Nd3 {[%emt 0:00:21][%cal Bb2d3,Bd3c5,Bc5b7,Bb7d6][%mdl 32]} Rbd8 {[%emt 0:00:26]} 41. c6 {[%emt 0:01:36]} Rc8 {[%emt 0:00:31] [#]} (41... Ne7 $11 {keeps the balance.}) 42. Nc5 $1 $16 {[%emt 0:00:28]} Qa7 {[%emt 0:00:11]} 43. Qf3 {[%emt 0:01:12]} Re7 {[%emt 0:00:35]} 44. Rd1 {[%emt 0:00:31] &Bianco is much more active.} Rd8 {[%emt 0:00:49]} 45. Ncb7 $36 {[%emt 0:01:10][%mdl 2048] White is in control. Pair of Knights!} Rc8 {[%emt 0:00:40]} 46. Nd6 {[%emt 0:01:20]} Rd8 {[%emt 0:00:13]} (46... Ra8 $14) 47. Nab7 $18 {[%emt 0:00:18]} Rf8 {[%emt 0:00:36]} (47... Rxd6 48. Nxd6 Qc7) 48. Rxd5 {[%emt 0:00:55]} exd5 {[%emt 0:00:01] [#]} 49. c7 $1 {[%emt 0:00:11]} Rxc7 {[%emt 0:01:26]} 50. Rc3 {[%emt 0:01:42][%mdl 8192]} Qd4 $4 {[%mdl 8192]} 51. Rxc7 {[%emt 0:00:00] White is clearly winning.} Rb8 (51... Qa1+ $142 52. Kh2 Qf6 53. Qxf6 Bxf6) 52. Rxf7 {[%emt 0:00:00]} (52. Qxf7+ $142 Kh8 53. Ne8 Qa1+ 54. Kh2 Qe5+ 55. f4 Qxc7 56. Nxc7) 52... Qe5 {[%emt 0:01:28]} 53. g3 {[%emt 0:00:50]} Qe6 {[%emt 0:00:29]} 54. Qf4 {[%emt 0:00:28]} Qe1+ {[%emt 0:00:34]} 55. Kg2 {[%emt 0:00:16] Weighted Error Value: White=0.41/Black=0.43} 1-0

[Event "1st Rio Chess Open 2022"]
[Site "Rio de Janeiro"]
[Date "2022.04.23"]
[Round "4.2"]
[White "Almeida, Gianluca Jorio"]
[Black "Rodriguez Vila, Andres"]
[Result "0-1"]
[ECO "A22"]
[WhiteElo "2112"]
[BlackElo "2435"]
[Annotator "TA"]
[PlyCount "80"]
[EventDate "2022.04.18"]
[EventType "swiss"]
[EventCountry "BRA"]
[SourceTitle "playchess.com"]
[Source "ChessBase"]
[SourceQuality "1"]
[TimeControl "5400+30"]

{[%evp 10,80,-7,-28,-14,-32,-42,-47,-16,-23,13,13,16,0,0,0,0,-59,-65,-95,-91,-125,-104,-116,-120,-160,-144,-161,-161,-163,-156,-161,-162,-370,-377,-373,-371,-382,-362,-403,-363,-389,-377,-385,-319,-313,-304,-283,-231,-570,-474,-496,-493,-439,-310,-578,-578,-691,-685,-670,-677,-1714,-1677,-29984,-29985,-29982,-29983,-29983,-29984,-29990,-29988,-29990,-29991]} 1. c4 {[%emt 0:00:02]} e5 {[%emt 0:00:45]} 2. Nc3 {[%emt 0:00:06]} Nf6 {[%emt 0:00:27]} 3. g3 {[%emt 0:00:19]} Bb4 {[%emt 0:00:21]} 4. Bg2 {[%emt 0:00:40]} O-O {[%emt 0:00:10]} 5. Nd5 {[%emt 0:02:51]} Nxd5 {[%emt 0:00:50]} 6. cxd5 {[%emt 0:00:09]} d6 $1 {[%emt 0:00:19] 6...d6 scores better than 6...c6. A22: English Opening: 1...e5 2 Nc3 Nf6.} 7. a3 {[%emt 0:01:46]} Bc5 {[%emt 0:00:38]} 8. d3 {[%emt 0:00:47]} f5 {[%emt 0:00:52] Black is slightly better.} 9. Nf3 {[%emt 0:17:01] [#]} Qf6 $146 {[%emt 0:00:27]} ({Predecessor:} 9... c6 10. O-O Qf6 11. dxc6 Nxc6 12. Rb1 f4 13. b4 Bb6 14. Bb2 fxg3 15. hxg3 Qg6 {0-1 (22) Kasperek,K (1493)-Rudol,M (1466) Ustron 2011}) 10. d4 {[%emt 0:06:46]} exd4 {[%emt 0:01:32]} 11. Bg5 {[%emt 0:02:14]} Qg6 {[%emt 0:00:08][%cal Of5f4]} 12. b4 {[%emt 0:02:04]} Bb6 {[%emt 0:00:17][%cal Of5f4] And now ...f4! would win.} 13. Qd3 {[%emt 0:00:24]} (13. O-O $11) 13... Nd7 $15 {[%emt 0:03:41]} 14. Bf4 {[%emt 0:04:47] [#] Black converts the advantage convincingly.} Qf6 $1 {[%emt 0:05:33]} 15. O-O {[%emt 0:08:48]} Ne5 {[%emt 0:00:28]} 16. Qd2 {[%emt 0:00:12]} h6 {[%emt 0:00:45]} 17. h4 {[%emt 0:01:17]} Bd7 {[%emt 0:00:05]} 18. a4 {[%emt 0:05:00] [#] Threatens to win with a5.} a5 $1 {[%emt 0:00:04]} 19. b5 {[%emt 0:00:03]} Rae8 {[%emt 0:00:26]} 20. Rad1 {[%emt 0:00:40]} Ng6 {[%emt 0:00:41] White must now prevent ...Re4.} 21. Rfe1 $2 {[%emt 0:03:26]} (21. Nxd4 Nxf4 22. Qxf4) 21... Nxf4 {[%emt 0:03:39]} 22. gxf4 {[%emt 0:07:05]} Re4 {[%emt 0:00:11]} 23. Qc1 {[%emt 0:00:50]} Rfe8 {[%emt 0:01:03]} 24. Kf1 {[%emt 0:00:17]} Qe7 {[%emt 0:01:25][%cal Re4e2]} 25. Qd2 {[%emt 0:10:41]} Bc5 {[%emt 0:00:18]} 26. Rb1 {[%emt 0:01:39]} Bb4 {[%emt 0:01:03]} 27. Rxb4 {[%emt 0:00:22]} axb4 {[%emt 0:00:02]} 28. Nxd4 {[%emt 0:00:24]} Qxh4 {[%emt 0:00:29]} 29. Ne6 {[%emt 0:00:54]} (29. e3 {was the crucial defense.}) 29... Bxe6 {[%emt 0:00:32]} 30. dxe6 {[%emt 0:00:09]} Rxf4 {[%emt 0:01:22][%csl Gf4][%cal Rh4f2]} 31. e3 {[%emt 0:00:07]} Re4 {[%emt 0:03:39][%cal Bf4e4,Be4e6,Be6g6][%mdl 32]} 32. Qd5 $2 {[%emt 0:01:51]} (32. Bxe4 {might work better.} Qxe4 33. Rc1) 32... R4xe6 $19 {[%emt 0:01:12]} 33. Qxb7 {[%emt 0:04:41]} Qc4+ {[%emt 0:00:51]} 34. Kg1 {[%emt 0:00:11]} Rg6 {[%emt 0:00:12] aiming for ...d5.} 35. a5 {[%emt 0:02:13]} d5 {[%emt 0:00:30] ( -> ...Qe4)} 36. Rd1 {[%emt 0:03:19] [#]} Rxg2+ $1 {[%emt 0:00:09] Black mates.} 37. Kxg2 {[%emt 0:00:14]} (37. Kh1 Rxf2) 37... Qg4+ {[%emt 0:00:01]} 38. Kh2 {[%emt 0:00:09]} Qxd1 {[%emt 0:00:35]} 39. a6 {[%emt 0:00:09]} Qh5+ {[%emt 0:01:41]} 40. Kg2 {[%emt 0:00:11]} f4 {[%emt 1:13:07] Weighted Error Value: White=0.72/Black=0.13 (very precise)} 0-1

[Event "1st Rio Chess Open 2022"]
[Site "Rio de Janeiro"]
[Date "2022.04.23"]
[Round "4.3"]
[White "Hoffman, Alejandro"]
[Black "Lage, Pedro Ferreira"]
[Result "1-0"]
[ECO "D95"]
[WhiteElo "2389"]
[BlackElo "2100"]
[Annotator "TA"]
[PlyCount "51"]
[EventDate "2022.04.18"]
[EventType "swiss"]
[EventCountry "BRA"]
[SourceTitle "playchess.com"]
[Source "ChessBase"]
[SourceQuality "1"]
[TimeControl "5400+30"]

{[%evp 13,51,-6,19,-7,0,-4,2,-10,84,85,87,99,110,112,122,123,122,125,123,121,137,129,174,168,200,154,161,162,247,222,583,581,572,570,762,754,795,775,755,735]} 1. d4 {[%emt 0:00:05]} d5 {[%emt 0:16:13]} 2. c4 {[%emt 0:00:14]} c6 {[%emt 0:00:08]} 3. Nc3 {[%emt 0:00:32]} Nf6 {[%emt 0:00:28]} 4. e3 {[%emt 0:00:19]} g6 {[%emt 0:00:18]} 5. Nf3 {[%emt 0:00:27]} Bg7 {[%emt 0:00:17]} 6. Qb3 {[%emt 0:01:22]} O-O {[%emt 0:02:11]} 7. Bd2 {[%emt 0:00:53]} b6 {[%emt 0:05:21]} 8. Bd3 {[%emt 0:08:29] D95: Grünfeld: 4 Nf3 Bg7 5 e3 0-0 6 Qb3.} Ba6 {[%emt 0:04:04]} 9. O-O {[%emt 0:01:01]} Nbd7 {[%emt 0:03:06] [#]} 10. Rfd1 $146 {[%emt 0:18:58] The position is equal.} (10. Rfc1 {feels hotter.} Rc8 11. Qa4 Bxc4 12. Bxc4 dxc4 13. Qxc4 Re8 14. Rd1) ({Predecessor:} 10. Rad1 e6 11. Bc1 dxc4 12. Bxc4 Bxc4 13. Qxc4 Rc8 14. e4 Qc7 15. Rfe1 h6 16. h3 {1-0 (30) Bisguier,A (2440)-Ruiz,A Palo Alto 1981}) 10... c5 {[%emt 0:05:38]} (10... e6 $11) 11. Nxd5 $16 {[%emt 0:02:55]} Nxd5 {[%emt 0:06:11]} 12. cxd5 {[%emt 0:00:07]} Bxd3 {[%emt 0:00:53]} 13. Qxd3 {[%emt 0:00:04]} cxd4 {[%emt 0:03:50]} 14. Nxd4 {[%emt 0:00:38]} Nc5 {[%emt 0:06:20]} 15. Qc4 {[%emt 0:00:55] &Bianco is more active.} Rc8 {[%emt 0:02:15][%cal Oe7e6]} 16. Nc6 {[%emt 0:01:33]} Qd7 {[%emt 0:01:27]} 17. Bc3 {[%emt 0:05:29] Hoping for Bxg7.} Bxc3 {[%emt 0:03:05]} 18. Qxc3 {[%emt 0:00:15]} ({Much less strong is} 18. bxc3 e6 $16) 18... f6 {[%emt 0:16:12]} 19. f3 {[%emt 0:09:12]} e6 {[%emt 0:02:51]} 20. e4 {[%emt 0:01:15]} f5 {[%emt 0:03:42]} (20... exd5 {was called for.} 21. exd5 Kg7) 21. b4 $18 {[%emt 0:02:14]} Na4 {[%emt 0:03:00]} (21... exd5 {is a better chance.} 22. exd5 (22. bxc5 Qxc6 23. Rxd5 fxe4 $14) 22... Nb7) 22. Qb3 $1 {[%emt 0:01:00][%csl LRa4,LRe6] White is clearly winning.} b5 {[%emt 0:01:05]} 23. Rac1 {[%emt 0:01:37]} exd5 {[%emt 0:01:21] [#]} 24. Rxd5 $1 {[%emt 0:02:39]} Qf7 {[%emt 0:01:51] [#]} (24... Qe6 25. Rxb5) 25. Ne7+ $1 {[%emt 0:02:33][%mdl 512]} Qxe7 {[%emt 0:00:02]} 26. Rd7+ {[%emt 0:01:05] Weighted Error Value: White=0.07 (flawless) /Black=0.46} 1-0

[Event "1st Rio Chess Open 2022"]
[Site "Rio de Janeiro"]
[Date "2022.04.23"]
[Round "4.4"]
[White "Soares, Joao Carlos T. C."]
[Black "Alboredo, Julia"]
[Result "1/2-1/2"]
[ECO "D92"]
[WhiteElo "2064"]
[BlackElo "2252"]
[Annotator "TA"]
[PlyCount "80"]
[EventDate "2022.04.18"]
[EventType "swiss"]
[EventCountry "BRA"]
[SourceTitle "playchess.com"]
[Source "ChessBase"]
[SourceQuality "1"]
[TimeControl "5400+30"]

{[%evp 12,80,0,-1,54,57,52,0,0,-4,-12,-6,-12,-12,-7,-23,-4,-4,-7,-3,-4,-6,-7,-24,-16,-25,-13,-30,-19,-29,-9,0,0,0,0,0,0,0,0,0,0,0,0,0,0,0,0,0,0,0,0,0,0,0,0,0,0,-4,0,-143,-152,-141,-16,-50,0,0,0,0,0,0,0]} 1. d4 {[%emt 0:01:37]} Nf6 {[%emt 0:03:29]} 2. c4 {[%emt 0:00:14]} g6 {[%emt 0:00:29]} 3. Nf3 {[%emt 0:00:55]} Bg7 {[%emt 0:00:09]} 4. Nc3 {[%emt 0:00:41]} O-O {[%emt 0:00:33]} 5. Bf4 {[%emt 0:00:24]} d5 {[%emt 0:00:42]} 6. Rc1 {[%emt 0:03:49]} dxc4 {[%emt 0:01:35]} 7. e4 {[%emt 0:00:14]} c6 {[%emt 0:05:01] D92: Grünfeld: 4 Nf3 Bg7 5 Bf4.} (7... Bg4 $11) 8. Bxc4 $14 {[%emt 0:05:45]} Bg4 {[%emt 0:05:30]} 9. e5 {[%emt 0:09:26]} (9. Be2 $14) 9... Nd5 {[%emt 0:10:25]} 10. Bxd5 {[%emt 0:00:48]} cxd5 {[%emt 0:00:02] [#]} 11. h3 $146 {[%emt 0:10:53]} ({Predecessor:} 11. Qb3 Bxf3 12. gxf3 Nc6 13. Be3 Rb8 14. Qxd5 Qxd5 15. Nxd5 Rfd8 16. Rxc6 bxc6 17. Nxe7+ {½-½ (96) Kapetanovic,A (2465)-Kreiman,B (2445) Toronto 1998}) 11... Bxf3 {[%emt 0:00:53]} 12. Qxf3 {[%emt 0:00:19]} Nc6 {[%emt 0:03:06]} 13. Qd3 {[%emt 0:08:10]} e6 {[%emt 0:10:04]} 14. Be3 {[%emt 0:04:38]} f6 {[%emt 0:01:32]} 15. exf6 {[%emt 0:00:59]} Qxf6 {[%emt 0:00:29][%cal Rc6d4]} 16. Ne2 {[%emt 0:00:31][%cal Bc3e2,Be2g1,Bg1f3][%mdl 32]} Rad8 {[%emt 0:54:31]} 17. f4 {[%emt 0:11:34] Against e5} Qf5 {[%emt 0:00:00]} 18. Qd2 {[%emt 0:19:18]} Rc8 {[%emt 0:00:00]} 19. O-O {[%emt 0:00:30]} Rf7 {[%emt 0:00:00]} 20. Kh1 {[%emt 0:09:49]} Rfc7 {[%emt 0:00:00]} 21. Ng1 {[%emt 0:01:10]} Ne7 {[%emt 0:00:00]} 22. Rxc7 {[%emt 0:02:12]} Rxc7 {[%emt 0:00:00]} 23. Rc1 {[%emt 0:02:26] Inhibits Rc2.} Rxc1 {[%emt 0:00:00]} 24. Qxc1 {[%emt 0:00:01]} Nc6 {[%emt 0:00:00]} 25. Nf3 {[%emt 0:00:40]} h6 {[%emt 0:00:00]} 26. Ne5 {[%emt 0:01:04]} Qe4 {[%emt 0:00:00]} 27. a3 {[%emt 0:04:28]} Kh7 {[%emt 0:00:00]} ({Don't do} 27... Nxe5 28. fxe5 Kh7 29. Bg1 $16) 28. Nxc6 {[%emt 0:00:22]} bxc6 {[%emt 0:00:00]} 29. Qd2 {[%emt 0:00:28]} Qb1+ {[%emt 0:00:00]} 30. Kh2 {[%emt 0:00:19]} Qf1 {[%emt 0:00:00]} 31. Bf2 {[%emt 0:00:59]} Qb1 {[%emt 0:00:24]} 32. Qe2 {[%emt 0:00:31]} Qf5 {[%emt 0:00:18]} 33. Qd2 {[%emt 0:00:17]} Qe4 {[%emt 0:00:32]} 34. Be3 {[%emt 0:01:00]} h5 {[%emt 0:00:21]} 35. g4 {[%emt 0:00:24]} (35. Kh1 $11) 35... hxg4 $17 {[%emt 0:01:08]} 36. hxg4 {[%emt 0:00:01] [#]} Qf3 {[%emt 0:00:30]} (36... g5 $1 $17 {[%cal Rg5f4]} 37. fxg5 e5) 37. g5 $11 {[%emt 0:00:30]} Bf8 {[%emt 0:00:42]} ({Black should play} 37... Kg8 $15) 38. Qf2 {[%emt 0:00:16] The position is equal.} Qxf2+ {[%emt 0:02:35]} 39. Bxf2 {[%emt 0:00:01]} Bd6 {[%emt 0:00:18]} 40. Kg3 {[%emt 0:00:12]} Kg7 {[%emt 0:00:07] Weighted Error Value: White=0.12 (very precise) /Black=0.12 (very precise)} 1/2-1/2

[Event "1st Rio Chess Open 2022"]
[Site "Rio de Janeiro"]
[Date "2022.04.23"]
[Round "4.5"]
[White "Aranha Filho, Alvaro Z."]
[Black "Nemeth Junior, Henrique"]
[Result "1-0"]
[ECO "E13"]
[WhiteElo "2226"]
[BlackElo "2096"]
[Annotator "TA"]
[PlyCount "85"]
[EventDate "2022.04.18"]
[EventType "swiss"]
[EventCountry "BRA"]
[SourceTitle "playchess.com"]
[Source "ChessBase"]
[SourceQuality "1"]
[TimeControl "5400+30"]

{[%evp 14,85,10,3,22,40,44,51,43,50,83,68,77,61,73,0,29,3,35,17,64,62,68,57,68,27,26,26,20,0,0,0,0,0,0,0,0,0,0,0,0,27,14,0,78,73,162,157,214,157,255,0,7,-268,138,72,79,20,139,132,231,243,633,604,29978,29979,29986,29987,29998,29996,29998,29996,29996,29997]} 1. d4 {[%emt 0:02:53]} Nf6 {[%emt 0:01:54]} 2. c4 {[%emt 0:00:22]} e6 {[%emt 0:00:03]} 3. Nc3 {[%emt 0:01:10]} Bb4 {[%emt 0:00:05]} 4. Qc2 {[%emt 0:00:30]} O-O {[%emt 0:00:26]} 5. Nf3 {[%emt 0:00:06]} b6 {[%emt 0:01:42]} 6. Bg5 {[%emt 0:03:20][%cal Bc1g5,Bg5h4,Bh4g3][%mdl 32]} h6 {[%emt 0:00:29]} 7. Bh4 {[%emt 0:00:36]} Bb7 {[%emt 0:01:39]} 8. e3 {[%emt 0:00:16]} g5 {[%emt 0:05:08] E13: Queen's Indian/Nimzo-Indian hybrid: 4 Nc3 Bb7 5 Bg5 h6 6 Bh4 Bb4.} 9. Bg3 {[%emt 0:00:30]} Ne4 {[%emt 0:00:17]} 10. Nd2 {[%emt 0:02:54]} Bxc3 {[%emt 1:23:47] White is slightly better.} 11. bxc3 {[%emt 0:00:22]} f5 {[%emt 0:00:13]} 12. f3 {[%emt 0:02:11]} Nxg3 {[%emt 0:09:43]} 13. hxg3 {[%emt 0:00:31]} Qf6 {[%emt 0:00:34] [#]} 14. Kf2 $146 {[%emt 0:17:33]} (14. O-O-O $16) ({Predecessor:} 14. Bd3 c5 15. g4 cxd4 16. cxd4 Nc6 17. Rb1 Rac8 18. gxf5 exf5 19. d5 Ne5 20. Qb3 {½-½ (41) Sodoma,J (2376)-Grabliauskas,V (2426) Ohrid 2009}) 14... Nc6 {[%emt 0:16:39]} 15. f4 {[%emt 0:03:30]} Rae8 {[%emt 0:13:19]} 16. Be2 {[%emt 0:05:12]} Kg7 {[%emt 0:11:21]} (16... Qg7 $11) 17. Rh5 {[%emt 0:07:09]} Rh8 {[%emt 0:01:25]} 18. Rah1 {[%emt 0:02:27]} d6 {[%emt 0:02:10]} 19. Nf3 {[%emt 0:03:01]} g4 {[%emt 0:01:40]} 20. Nd2 {[%emt 0:00:51]} Ne7 {[%emt 0:00:51]} 21. Bd3 {[%emt 0:09:46]} c5 {[%emt 0:00:29]} 22. d5 {[%emt 0:17:25]} exd5 {[%emt 0:04:24]} (22... Ng8 {seems wilder.} 23. e4 Qe7 24. e5 dxe5 25. fxe5 exd5 26. Rxf5 Rf8) 23. Bxf5 {[%emt 0:01:19]} Nxf5 {[%emt 0:00:50]} 24. Qxf5 {[%emt 0:00:37] Chess con chili.} Qxf5 {[%emt 0:01:06]} 25. Rxf5 {[%emt 0:00:02]} dxc4 {[%emt 0:01:44]} 26. Nxc4 {[%emt 0:02:03]} Be4 {[%emt 0:01:41]} 27. Rfh5 {[%emt 0:00:27]} Bg6 {[%emt 0:00:13]} 28. R5h4 {[%emt 0:00:47]} h5 {[%emt 0:01:36]} (28... d5 $11 29. Rxg4 h5) 29. Rd1 $16 {[%emt 0:00:27]} d5 {[%emt 0:04:53]} (29... Rd8 $16) 30. Rxd5 $18 {[%emt 0:00:42]} Rd8 {[%emt 0:01:41]} (30... Kf6 $16 31. Ne5 Bf5) 31. Nd6 {[%emt 0:06:46]} b5 {[%emt 0:01:15]} (31... Kf8 $16) 32. f5 $2 {[%emt 0:01:34]} (32. Rh1 $18) 32... Bf7 $11 {[%emt 0:00:29]} 33. Rd2 {[%emt 0:03:14][%mdl 8192]} (33. f6+ $11 {and White is okay.} Kxf6 34. Rf5+ Ke6 35. Nxf7 Kxf5 36. Nxd8 Rxd8 37. Rxh5+ Ke4 38. Ke2) 33... Bxa2 $2 {[%emt 0:01:11]} 34. Rxa2 {[%emt 0:00:48]} (34. e4 $142) 34... Rxd6 $16 {[%emt 0:00:04] [#]} 35. Rxa7+ $19 {[%emt 0:00:34][%mdl 4096] Endgame KRR-KRR} (35. e4 $1 $16) 35... Kf6 {[%emt 0:00:05]} (35... Kh6 $1 $11) 36. e4 $16 {[%emt 0:02:40][%cal Be3e4,Be4e5][%mdl 32] Black must now prevent Rh1.} c4 {[%emt 0:00:41] [#]} (36... b4 $16 {was worth a try.}) 37. Ke3 $1 $18 {[%emt 0:00:31] Strongly threatening Kf4.} Kg5 {[%emt 0:01:09]} (37... Rd3+ $2 38. Kf4 Re3 39. Kxe3 $18) (37... Ke5) 38. Rg7+ {[%emt 0:00:31]} Kh6 {[%emt 0:00:03]} 39. Rgxg4 {[%emt 0:00:45] White mates.} Re8 {[%emt 0:00:41]} 40. Kf4 {[%emt 0:00:36]} b4 {[%emt 0:01:24]} 41. e5 {[%emt 0:00:23]} Rc6 {[%emt 0:00:33]} 42. Rg5 {[%emt 0:00:48][%csl Gg5][%cal Rh4h5]} Kh7 {[%emt 0:00:09]} 43. f6 {[%emt 0:03:51] Weighted Error Value: White=0.37/Black=0.71} 1-0